bitfinex/quotes_BTCUSD_20241107
["timestamp","ask_amount","ask_price","bid_price","bid_amount"]
[1730993537901,0.17222063,75381.0,75379.0,0.001664]
[1730993538117,0.014,75380.0,75379.0,0.001664]
[1730993538554,0.15822063,75381.0,75379.0,0.001664]
[1730993538798,0.014,75380.0,75379.0,0.001664]
[1730993539951,0.028,75380.0,75379.0,0.001664]
[1730993540393,0.29290202,75380.0,75379.0,0.001664]
[1730993540641,0.40131988,75380.0,75379.0,0.001664]
[1730993540859,0.29290202,75380.0,75379.0,0.001664]
[1730993541331,0.27890202,75380.0,75379.0,0.001664]
[1730993541522,0.29290202,75380.0,75379.0,0.001664]
[1730993542176,0.37890202,75380.0,75379.0,0.001664]
[1730993542387,0.51644479,75380.0,75379.0,0.001664]
[1730993542615,0.39820202,75380.0,75379.0,0.001664]
[1730993542867,1.02920202,75380.0,75379.0,0.001664]
[1730993543304,1.02890202,75380.0,75379.0,0.001664]
[1730993543760,1.04290202,75380.0,75379.0,0.001664]
[1730993544217,1.02890202,75380.0,75379.0,0.001664]
[1730993544440,0.005,75377.0,75375.0,0.498164]
[1730993544664,0.26490902,75376.0,75375.0,0.498164]
[1730993544877,0.28790902,75376.0,75375.0,0.498164]
[1730993545948,0.30190902,75376.0,75375.0,0.498164]
[1730993546424,0.14624102,75376.0,75375.0,0.498164]
[1730993546642,0.014,75376.0,75375.0,0.6378804]
[1730993546888,0.014,75376.0,75375.0,0.6853804]
[1730993547186,0.014,75376.0,75375.0,0.84586518]
[1730993547422,0.014,75376.0,75375.0,0.6903804]
[1730993547629,0.014,75376.0,75375.0,0.83262142]
[1730993548263,0.001666,75381.0,75375.0,0.83262142]
[1730993548264,0.001666,75381.0,75380.0,0.0097]
[1730993548489,0.001666,75381.0,75380.0,0.0117]
[1730993549805,0.001666,75381.0,75380.0,0.0267]
[1730993550034,0.001666,75381.0,75380.0,0.1047]
[1730993550464,0.002666,75381.0,75380.0,0.1057]
[1730993550941,0.002666,75381.0,75380.0,0.1047]
[1730993551157,0.001666,75381.0,75380.0,0.1047]
[1730993551363,0.002666,75381.0,75380.0,0.1057]
[1730993551589,0.003666,75381.0,75380.0,0.18834147]
[1730993551810,0.002666,75381.0,75380.0,0.18734147]
[1730993552038,0.001666,75381.0,75380.0,0.18734147]
[1730993552262,0.003666,75381.0,75380.0,0.1057]
[1730993552482,0.002666,75381.0,75380.0,0.1057]
[1730993552933,0.003666,75381.0,75380.0,0.1007]
[1730993553378,0.002666,75381.0,75380.0,0.0997]
[1730993553656,0.002666,75381.0,75380.0,0.109533]
[1730993554116,0.002666,75381.0,75380.0,0.095533]
[1730993554341,0.002666,75381.0,75380.0,0.090533]
[1730993554583,0.001666,75381.0,75380.0,0.015533]
[1730993554792,0.001666,75381.0,75380.0,0.010833]
[1730993554793,0.26656602,75381.0,75380.0,0.010833]
[1730993555000,0.3095084,75381.0,75380.0,0.018833]
[1730993555209,0.26756602,75381.0,75380.0,0.008833]
[1730993555424,0.42180879,75381.0,75380.0,0.000833]
[1730993555844,0.43580879,75381.0,75380.0,0.001833]
[1730993556720,1.13740879,75381.0,75380.0,0.001833]
[1730993556920,1.39145724,75381.0,75380.0,0.012833]
[1730993557393,1.39045724,75381.0,75380.0,0.001833]
[1730993557620,1.27221447,75381.0,75380.0,0.002833]
[1730993558085,1.25984287,75381.0,75380.0,0.002833]
[1730993558313,1.27221505,75381.0,75380.0,0.002833]
[1730993558532,1.28621505,75381.0,75380.0,0.003833]
[1730993558785,1.37808564,75381.0,75380.0,0.001833]
[1730993558992,1.39208564,75381.0,75380.0,0.002833]
[1730993559206,1.40445902,75381.0,75380.0,0.002833]
[1730993560244,1.27221625,75381.0,75380.0,0.002833]
[1730993562005,1.25984287,75381.0,75380.0,0.002833]
[1730993562231,1.27221933,75381.0,75380.0,0.002833]
[1730993562668,1.58671933,75381.0,75380.0,0.002833]
[1730993565858,1.62622487,75381.0,75380.0,0.002833]
[1730993566070,1.58672078,75381.0,75380.0,0.002833]
[1730993566281,1.23638387,75381.0,75380.0,0.002833]
[1730993566548,0.40784285,75381.0,75380.0,0.007833]
[1730993566756,0.344166,75381.0,75380.0,0.012533]
[1730993567206,0.344166,75381.0,75380.0,0.014533]
[1730993567445,0.60906602,75381.0,75380.0,0.002833]
[1730993567663,0.59506602,75381.0,75380.0,0.001833]
[1730993568325,0.60906602,75381.0,75380.0,0.002833]
[1730993568530,0.59506602,75381.0,75380.0,0.001833]
[1730993568982,0.86960879,75381.0,75380.0,0.002833]
[1730993569210,0.86960879,75381.0,75380.0,0.000833]
[1730993569211,1.13112266,75381.0,75380.0,0.000833]
[1730993569425,1.31980361,75381.0,75380.0,0.000833]
[1730993569635,1.40707442,75381.0,75380.0,0.002833]
[1730993569853,1.47986799,75381.0,75380.0,0.001833]
[1730993570289,1.55889574,75381.0,75380.0,0.001833]
[1730993570704,1.46586799,75381.0,75380.0,0.000833]
[1730993570920,1.46586799,75381.0,75380.0,0.001833]
[1730993571149,1.36162522,75381.0,75380.0,0.002833]
[1730993571383,1.36162522,75381.0,75380.0,0.001833]
[1730993571384,1.34762522,75381.0,75380.0,0.001833]
[1730993571615,1.4464099,75381.0,75380.0,0.001833]
[1730993571850,1.4604099,75381.0,75380.0,0.002833]
[1730993572076,1.4604099,75381.0,75380.0,0.001833]
[1730993572077,1.90915267,75381.0,75380.0,0.001833]
[1730993572559,1.81036799,75381.0,75380.0,0.001833]
[1730993573029,1.83674043,75381.0,75380.0,0.002833]
[1730993573721,1.82274043,75381.0,75380.0,0.001433]
[1730993574144,1.70449766,75381.0,75380.0,0.002433]
[1730993574609,2.40079766,75381.0,75380.0,0.002433]
[1730993575089,2.47578829,75381.0,75380.0,0.002433]
[1730993575330,2.53956664,75381.0,75380.0,0.002433]
[1730993575555,1.80391,75381.0,75380.0,0.001433]
[1730993575779,1.78991,75381.0,75380.0,0.000433]
[1730993576004,1.80391,75381.0,75380.0,0.001433]
[1730993576232,1.81791,75381.0,75380.0,0.002433]
[1730993576460,1.80391,75381.0,75380.0,0.001433]
[1730993576706,1.81791,75381.0,75380.0,0.002433]
[1730993577160,1.95015277,75381.0,75380.0,0.002433]
[1730993577402,0.237968,75376.0,75375.0,0.49895701]
[1730993577627,1.76694733,75376.0,75375.0,0.49895701]
[1730993578322,1.76697559,75376.0,75375.0,0.49895701]
[1730993578999,1.82391876,75376.0,75375.0,0.49895701]
[1730993579272,2.32361876,75376.0,75375.0,0.49895701]
[1730993579502,2.17742463,75376.0,75375.0,0.49895701]
[1730993579736,2.33792889,75376.0,75375.0,0.49895701]
[1730993580455,3.11343919,75376.0,75375.0,0.49895701]
[1730993580691,3.03422889,75376.0,75375.0,0.49895701]
[1730993581142,3.07102195,75376.0,75375.0,0.49895701]
[1730993582080,3.03422889,75376.0,75375.0,0.49895701]
[1730993582325,2.26665993,75376.0,75375.0,0.49895701]
[1730993582553,1.99481561,75376.0,75375.0,0.50095701]
[1730993582987,2.12748361,75376.0,75375.0,0.49895701]
[1730993583219,2.37959496,75376.0,75375.0,0.49895701]
[1730993583435,2.41758789,75376.0,75375.0,0.49895701]
[1730993583648,2.37798459,75376.0,75375.0,0.49895701]
[1730993583875,2.36398459,75376.0,75375.0,0.49895701]
[1730993584295,2.40098459,75376.0,75375.0,0.49895701]
[1730993584529,2.50474182,75376.0,75375.0,0.49895701]
[1730993584969,2.11468419,75376.0,75375.0,0.49895701]
[1730993585184,1.96844317,75376.0,75375.0,0.49895701]
[1730993585402,1.95444317,75376.0,75375.0,0.49895701]
[1730993585606,1.98244317,75376.0,75375.0,0.49895701]
[1730993585845,2.10111117,75376.0,75375.0,0.49895701]
[1730993586067,1.98085654,75376.0,75375.0,0.49895701]
[1730993586281,2.09952454,75376.0,75375.0,0.49895701]
[1730993586502,1.41722454,75376.0,75375.0,0.49895701]
[1730993586924,1.28455654,75376.0,75375.0,0.49895701]
[1730993587135,1.41722454,75376.0,75375.0,0.49895701]
[1730993587349,1.43122454,75376.0,75375.0,0.49895701]
[1730993587578,1.43122497,75376.0,75375.0,0.49895701]
[1730993588053,1.56346599,75376.0,75375.0,0.49895701]
[1730993588328,1.81466081,75376.0,75375.0,0.49895701]
[1730993588546,1.85426373,75376.0,75375.0,0.49895701]
[1730993588756,2.05420641,75376.0,75375.0,0.49895701]
[1730993588971,2.26086015,75376.0,75375.0,0.49895701]
[1730993589204,2.49496313,75376.0,75375.0,0.49895701]
[1730993589410,2.52819543,75376.0,75375.0,0.49895701]
[1730993589638,2.45555744,75376.0,75375.0,0.49895701]
[1730993590089,2.61111427,75376.0,75375.0,0.49895701]
[1730993590313,3.30741427,75376.0,75375.0,0.49895701]
[1730993590534,3.37114147,75376.0,75375.0,0.49895701]
[1730993591178,3.34314147,75376.0,75375.0,0.49895701]
[1730993591412,3.35714147,75376.0,75375.0,0.49895701]
[1730993591641,3.44612992,75376.0,75375.0,0.49895701]
[1730993591847,3.29988715,75376.0,75375.0,0.49895701]
[1730993592087,3.31388715,75376.0,75375.0,0.49895701]
[1730993592293,3.29988715,75376.0,75375.0,0.49895701]
[1730993592731,3.31388715,75376.0,75375.0,0.49895701]
[1730993593167,3.31384291,75376.0,75375.0,0.49895701]
[1730993593623,3.02251232,75376.0,75375.0,0.49895701]
[1730993595026,3.07061325,75376.0,75375.0,0.49895701]
[1730993595246,3.07061093,75376.0,75375.0,0.49895701]
[1730993595468,4.32451,75376.0,75375.0,0.49895701]
[1730993596373,4.32459326,75376.0,75375.0,0.49895701]
[1730993597909,4.32469446,75376.0,75375.0,0.49895701]
[1730993598774,3.87954435,75376.0,75375.0,0.49895701]
[1730993599016,3.87954435,75376.0,75367.0,0.0015]
[1730993599017,1.010982,75368.0,75367.0,0.0015]
[1730993599250,1.53642698,75368.0,75367.0,0.0015]
[1730993599489,1.65254617,75368.0,75367.0,0.0015]
[1730993599697,1.57322004,75368.0,75367.0,0.0015]
[1730993599883,1.61503976,75368.0,75367.0,0.0015]
[1730993600133,1.94553976,75368.0,75367.0,0.0015]
[1730993600587,2.04469743,75368.0,75367.0,0.0015]
[1730993601059,1.94553976,75368.0,75367.0,0.0015]
[1730993601272,2.75508349,75368.0,75367.0,0.0015]
[1730993601487,0.0053,75367.0,75366.0,0.0015]
[1730993601703,0.77321845,75367.0,75366.0,0.0015]
[1730993602379,0.71513532,75367.0,75366.0,0.0015]
[1730993602598,0.71513716,75367.0,75366.0,0.0015]
[1730993603296,0.61589815,75367.0,75366.0,0.0015]
[1730993603965,0.65269121,75367.0,75366.0,0.0015]
[1730993604180,0.66669121,75367.0,75366.0,0.0015]
[1730993604396,0.79893398,75367.0,75366.0,0.0015]
[1730993604610,0.81293398,75367.0,75366.0,0.0015]
[1730993605059,0.260985,75366.0,75365.0,0.0015]
[1730993605279,0.260985,75366.0,75361.0,0.0015]
[1730993605280,0.41654883,75362.0,75361.0,0.0015]
[1730993605497,2.06503578,75362.0,75361.0,0.0015]
[1730993605731,2.16591614,75362.0,75361.0,0.0015]
[1730993605957,1.16656183,75355.0,75354.0,0.001666]
[1730993606181,2.74818993,75355.0,75354.0,0.001666]
[1730993606414,2.80035489,75355.0,75354.0,0.001666]
[1730993607552,3.03751172,75355.0,75354.0,0.001666]
[1730993607776,0.26101,75352.0,75351.0,0.013334]
[1730993607997,0.68286148,75352.0,75351.0,0.013334]
[1730993608428,0.60351083,75352.0,75351.0,0.013334]
[1730993609121,0.61751083,75352.0,75351.0,0.013334]
[1730993609334,0.61751083,75352.0,75346.0,0.0015]
[1730993609335,1.011019,75347.0,75346.0,0.0015]
[1730993609551,1.21513872,75347.0,75346.0,0.0015]
[1730993610011,1.34738149,75347.0,75346.0,0.0015]
[1730993610222,1.28789593,75347.0,75346.0,0.0015]
[1730993610644,1.98419593,75347.0,75346.0,0.0015]
[1730993610866,1.99819593,75347.0,75346.0,0.0015]
[1730993611075,2.03535282,75347.0,75346.0,0.0015]
[1730993611388,2.04935282,75347.0,75346.0,0.0015]
[1730993611485,2.19569207,75347.0,75346.0,0.0015]
[1730993611911,2.23700353,75347.0,75346.0,0.0015]
[1730993612135,0.732742,75334.0,75333.0,0.001502]
[1730993612383,2.24713299,75334.0,75333.0,0.001502]
[1730993612608,2.94873299,75334.0,75333.0,0.001502]
[1730993612820,3.00818339,75334.0,75333.0,0.001502]
[1730993613042,3.09505165,75334.0,75333.0,0.001502]
[1730993613270,3.04882522,75334.0,75333.0,0.001502]
[1730993613741,3.19509998,75334.0,75333.0,0.001502]
[1730993613963,1.32216966,75326.0,75311.0,0.20034268]
[1730993614179,1.46680382,75326.0,75311.0,0.20034268]
[1730993614862,3.01749659,75326.0,75311.0,0.20034268]
[1730993615093,2.67854699,75326.0,75311.0,0.20034268]
[1730993615365,2.74613957,75326.0,75311.0,0.20034268]
[1730993615602,2.86210382,75326.0,75311.0,0.20034268]
[1730993615824,1.16663683,75312.0,75311.0,0.0004]
[1730993616038,5.35341313,75312.0,75311.0,0.0004]
[1730993616253,5.4856559,75312.0,75311.0,0.0004]
[1730993616494,5.10311313,75312.0,75311.0,0.0004]
[1730993617384,5.11711313,75312.0,75311.0,0.0004]
[1730993617600,4.9475563,75312.0,75311.0,0.0004]
[1730993618031,4.9615563,75312.0,75311.0,0.0004]
[1730993618248,5.07979907,75312.0,75311.0,0.0004]
[1730993618700,5.09379907,75312.0,75311.0,0.0004]
[1730993619165,4.44091497,75312.0,75311.0,0.0004]
[1730993619614,4.45491497,75312.0,75311.0,0.0004]
[1730993619828,4.3226722,75312.0,75311.0,0.0004]
[1730993621159,0.132801,75301.0,75295.0,0.01504668]
[1730993621618,0.1,75304.0,75288.0,0.15555683]
[1730993621832,0.13224102,75300.0,75281.0,0.16055683]
[1730993622044,0.265607,75299.0,75281.0,0.16055683]
[1730993622277,0.132808,75297.0,75281.0,0.16055683]
[1730993622509,0.132808,75297.0,75293.0,0.0199968]
[1730993622510,0.655812,75294.0,75293.0,0.0199968]
[1730993622722,1.57605302,75294.0,75293.0,0.0199968]
[1730993622926,1.63978022,75294.0,75293.0,0.0199968]
[1730993623156,1.65012706,75294.0,75293.0,0.0199968]
[1730993623375,1.62278022,75294.0,75293.0,0.0199968]
[1730993623596,0.86696822,75294.0,75293.0,0.0199968]
[1730993624035,0.88096822,75294.0,75293.0,0.0199968]
[1730993624256,0.99978022,75294.0,75293.0,0.0199968]
[1730993624525,0.88096822,75294.0,75293.0,0.0199968]
[1730993624938,0.89496822,75294.0,75293.0,0.0199968]
[1730993625146,1.0932272,75294.0,75293.0,0.0695968]
[1730993625361,1.0295,75294.0,75293.0,0.0695968]
[1730993625572,0.3585,75294.0,75293.0,0.0695968]
[1730993626039,0.3585,75294.0,75293.0,0.0745968]
[1730993626242,4e-05,75300.0,75298.0,0.005]
[1730993626452,4e-05,75300.0,75299.0,0.16055683]
[1730993627717,0.1165,75315.0,75299.0,0.16321261]
[1730993627933,0.1165,75315.0,75306.0,0.15555683]
[1730993628177,0.1165,75315.0,75307.0,0.02105568]
[1730993628422,0.1165,75315.0,75314.0,0.15555683]
[1730993628906,0.331,75321.0,75320.0,0.005]
[1730993629136,0.04232037,75334.0,75322.0,0.0494]
[1730993629814,4e-05,75330.0,75322.0,0.05705503]
[1730993630038,4e-05,75330.0,75322.0,0.0544]
[1730993630971,0.01404,75330.0,75322.0,0.0554]
[1730993631221,0.01504,75330.0,75325.0,0.005]
[1730993631458,4e-05,75330.0,75328.0,0.15555683]
[1730993631889,0.01404,75330.0,75328.0,0.15555683]
[1730993632335,0.01404,75330.0,75328.0,0.16055683]
[1730993632975,4e-05,75330.0,75328.0,0.15555683]
[1730993633186,4e-05,75330.0,75322.0,0.0554]
[1730993633397,4e-05,75330.0,75328.0,0.01]
[1730993633398,0.00104,75330.0,75328.0,0.01]
[1730993633612,0.13275,75329.0,75328.0,0.01]
[1730993634086,1.02514943,75329.0,75328.0,0.01]
[1730993634310,1.39520675,75329.0,75328.0,0.009]
[1730993634562,0.25,75323.0,75322.0,0.001]
[1730993634806,1.17720202,75323.0,75322.0,0.001]
[1730993635029,1.17720202,75323.0,75301.0,0.0818]
[1730993635030,0.5,75316.0,75301.0,0.0818]
[1730993635255,0.13278,75312.0,75301.0,0.0818]
[1730993635477,0.13224102,75312.0,75301.0,0.0818]
[1730993636577,0.265534,75320.0,75302.0,0.19994268]
[1730993636806,0.265534,75320.0,75303.0,0.005]
[1730993636807,0.19994268,75318.0,75303.0,0.005]
[1730993637030,0.19994268,75318.0,75307.0,0.22849058]
[1730993637277,0.19994268,75318.0,75306.0,0.005]
[1730993637485,0.5,75316.0,75299.0,0.000833]
[1730993637713,0.160781,75312.0,75301.0,0.20194268]
[1730993637942,0.13224102,75311.0,75301.0,0.001]
[1730993638156,0.13224102,75311.0,75299.0,0.000833]
[1730993638373,0.132788,75308.0,75307.0,0.001]
[1730993638599,0.132788,75308.0,75299.0,0.000833]
[1730993638600,0.155789,75307.0,75306.0,0.001]
[1730993638816,0.40453002,75307.0,75306.0,0.001]
[1730993639921,0.27174102,75307.0,75301.0,0.001]
[1730993640135,0.13224102,75306.0,75301.0,0.001]
[1730993640354,0.13224102,75306.0,75299.0,0.001833]
[1730993640792,0.132802,75300.0,75299.0,0.000833]
[1730993641033,0.26504302,75300.0,75299.0,0.000833]
[1730993641704,0.28804302,75300.0,75299.0,0.000833]
[1730993641947,0.28804302,75300.0,75299.0,0.001833]
[1730993642171,0.54304302,75300.0,75299.0,0.001833]
[1730993643580,0.61300127,75300.0,75299.0,0.001833]
[1730993643822,0.93200127,75300.0,75299.0,0.000833]
[1730993644054,1.06424404,75300.0,75299.0,0.001833]
[1730993644272,0.94600127,75300.0,75299.0,0.001833]
[1730993644488,1.16600127,75300.0,75299.0,0.001833]
[1730993644719,1.03319927,75300.0,75299.0,0.001833]
[1730993645165,0.859,75300.0,75299.0,0.001833]
[1730993645614,0.359,75300.0,75299.0,0.001833]
[1730993645851,1.12404302,75300.0,75299.0,0.001833]
[1730993646320,1.09770902,75300.0,75299.0,0.000833]
[1730993646531,0.98790702,75300.0,75299.0,0.001833]
[1730993646742,0.360666,75300.0,75299.0,0.001833]
[1730993646988,0.360666,75300.0,75299.0,0.000833]
[1730993647198,0.360666,75300.0,75299.0,0.001833]
[1730993647479,0.346666,75300.0,75299.0,0.0090163]
[1730993647713,0.029666,75300.0,75299.0,0.0140163]
[1730993647950,0.029666,75300.0,75299.0,0.001833]
[1730993648193,0.001666,75300.0,75299.0,0.000833]
[1730993648378,0.015666,75300.0,75299.0,0.000833]
[1730993648876,0.015666,75300.0,75299.0,0.0104163]
[1730993649084,0.015666,75300.0,75299.0,0.000833]
[1730993649308,0.015666,75300.0,75299.0,0.005833]
[1730993649543,0.015666,75300.0,75299.0,0.001833]
[1730993649738,0.015666,75300.0,75299.0,0.000833]
[1730993650249,0.015666,75300.0,75299.0,0.012833]
[1730993650250,0.135468,75300.0,75299.0,0.012833]
[1730993650726,0.003666,75300.0,75299.0,0.014833]
[1730993650951,0.003666,75300.0,75299.0,0.002833]
[1730993650952,0.002666,75300.0,75299.0,0.002833]
[1730993651171,0.001666,75300.0,75299.0,0.000833]
[1730993651386,0.029666,75300.0,75299.0,0.001833]
[1730993653141,0.029666,75300.0,75299.0,0.006833]
[1730993653420,0.029666,75300.0,75299.0,0.25527197]
[1730993653648,0.029666,75300.0,75299.0,0.30457197]
[1730993654314,0.015666,75300.0,75299.0,0.3036622]
[1730993654532,0.016666,75300.0,75299.0,0.3056622]
[1730993654746,0.002666,75300.0,75299.0,0.30473897]
[1730993656093,0.003666,75300.0,75299.0,0.31573897]
[1730993657665,0.003666,75300.0,75299.0,0.1537]
[1730993657870,0.003666,75300.0,75299.0,0.159533]
[1730993660961,0.003666,75300.0,75299.0,0.29442965]
[1730993661184,0.003666,75300.0,75299.0,0.29177402]
[1730993661447,0.003666,75300.0,75299.0,0.44742167]
[1730993661681,0.003666,75300.0,75299.0,0.49436384]
[1730993662341,0.002666,75300.0,75299.0,0.49236384]
[1730993662874,0.002666,75300.0,75299.0,0.35012282]
[1730993663107,0.002666,75300.0,75299.0,0.30918065]
[1730993663317,0.001666,75300.0,75299.0,0.014833]
[1730993663555,0.001666,75300.0,75299.0,0.000833]
[1730993663762,0.002666,75300.0,75299.0,0.0254888]
[1730993664005,0.002666,75300.0,75299.0,0.14372982]
[1730993664424,0.002666,75300.0,75299.0,0.15672982]
[1730993664640,0.002666,75300.0,75299.0,0.14107402]
[1730993664885,0.001666,75300.0,75299.0,0.005833]
[1730993665325,0.002666,75300.0,75299.0,0.02248868]
[1730993665541,0.002666,75300.0,75299.0,0.1567297]
[1730993665761,0.001666,75300.0,75299.0,0.19024738]
[1730993665976,0.004666,75300.0,75299.0,0.19124738]
[1730993666193,0.005666,75300.0,75299.0,0.20324738]
[1730993666410,0.005666,75300.0,75299.0,0.29604738]
[1730993666653,0.004666,75300.0,75299.0,0.2823917]
[1730993666867,0.002666,75300.0,75299.0,0.32545025]
[1730993667087,0.002666,75300.0,75299.0,0.33845025]
[1730993667300,0.002666,75300.0,75299.0,0.32545025]
[1730993667731,0.002666,75300.0,75299.0,0.33945025]
[1730993668159,0.002666,75300.0,75299.0,0.114633]
[1730993668367,0.002666,75300.0,75299.0,0.124633]
[1730993668574,0.001666,75300.0,75299.0,0.110633]
[1730993668996,0.002666,75300.0,75299.0,0.124633]
[1730993669280,0.002666,75300.0,75299.0,0.110633]
[1730993669523,0.001666,75300.0,75299.0,0.110633]
[1730993669732,0.002666,75300.0,75299.0,0.110633]
[1730993670164,0.001666,75300.0,75299.0,0.48714341]
[1730993670380,0.001666,75300.0,75299.0,0.47314341]
[1730993670590,0.001666,75300.0,75299.0,0.48914341]
[1730993670805,0.002666,75300.0,75299.0,0.50114341]
[1730993671023,0.002666,75300.0,75299.0,0.55094341]
[1730993671442,0.002666,75300.0,75299.0,0.88139046]
[1730993671663,0.19994268,75328.0,75319.0,0.005]
[1730993671902,0.19994268,75328.0,75327.0,0.005]
[1730993672315,0.001706,75330.0,75327.0,0.005]
[1730993672504,0.001706,75330.0,75328.0,0.00265475]
[1730993672708,0.001706,75330.0,75327.0,0.005]
[1730993672914,0.001706,75330.0,75328.0,0.02334471]
[1730993673134,0.001706,75330.0,75327.0,0.005]
[1730993673279,0.001706,75330.0,75329.0,0.005]
[1730993673702,0.014706,75330.0,75329.0,0.005]
[1730993673997,0.017706,75330.0,75329.0,0.005]
[1730993674236,0.004706,75330.0,75329.0,0.005]
[1730993674428,0.017706,75330.0,75329.0,0.05161881]
[1730993675209,0.014706,75330.0,75329.0,0.001]
[1730993675613,0.017706,75330.0,75329.0,0.001]
[1730993675812,0.001706,75330.0,75324.0,0.005]
[1730993676016,0.012706,75330.0,75329.0,0.001]
[1730993676242,0.012706,75330.0,75329.0,0.013]
[1730993676590,0.012706,75330.0,75307.0,0.0467]
[1730993676591,0.001706,75330.0,75319.0,0.005]
[1730993676861,0.004706,75330.0,75329.0,0.001]
[1730993677068,0.015706,75330.0,75329.0,0.002]
[1730993677482,0.015706,75330.0,75329.0,0.001]
[1730993677702,0.004706,75330.0,75329.0,0.001]
[1730993677915,0.004706,75330.0,75329.0,0.006]
[1730993678131,0.004706,75330.0,75329.0,0.03091019]
[1730993678336,0.001706,75330.0,75329.0,0.02991019]
[1730993678750,0.004706,75330.0,75329.0,0.02991019]
[1730993678958,0.013706,75330.0,75329.0,0.02991019]
[1730993679164,0.016706,75330.0,75329.0,0.03091019]
[1730993679367,0.004706,75330.0,75329.0,0.03091019]
[1730993679582,0.001706,75330.0,75329.0,0.02991019]
[1730993679794,0.013706,75330.0,75329.0,0.03091019]
[1730993680003,0.016706,75330.0,75329.0,0.03191019]
[1730993680213,0.013706,75330.0,75329.0,0.03091019]
[1730993680627,0.001706,75330.0,75329.0,0.02991019]
[1730993680848,0.001706,75330.0,75329.0,0.16215121]
[1730993681056,0.001706,75330.0,75329.0,0.17480576]
[1730993681263,0.001706,75330.0,75329.0,0.17415121]
[1730993681485,0.004706,75330.0,75329.0,0.44877904]
[1730993681713,0.004706,75330.0,75329.0,0.21767769]
[1730993681993,0.001706,75330.0,75329.0,0.21667769]
[1730993682214,0.001706,75330.0,75329.0,0.23067769]
[1730993682644,0.002706,75330.0,75329.0,0.24267769]
[1730993682849,0.002706,75330.0,75329.0,0.22867769]
[1730993683059,0.001706,75330.0,75329.0,0.23067769]
[1730993683497,0.002706,75330.0,75329.0,0.24467769]
[1730993687626,0.002706,75330.0,75329.0,0.40019847]
[1730993688344,0.002706,75330.0,75329.0,0.39919847]
[1730993688585,0.19994268,75346.0,75345.0,0.015]
[1730993688807,0.12229681,75374.0,75346.0,0.017]
[1730993689035,0.19994268,75375.0,75349.0,0.14924102]
[1730993689247,0.19994268,75375.0,75365.0,0.17052078]
[1730993689459,0.19994268,75375.0,75374.0,0.005]
[1730993689670,0.19994268,75375.0,75371.0,0.15552078]
[1730993689872,0.078,75374.0,75364.0,0.00265348]
[1730993690084,0.078,75374.0,75365.0,0.20494268]
[1730993690278,0.078,75374.0,75365.0,0.22076502]
[1730993690439,0.078,75374.0,75368.0,0.005]
[1730993692083,0.078,75374.0,75368.0,0.006]
[1730993692225,0.078,75374.0,75368.0,0.007]
[1730993693482,0.001664,75376.0,75374.0,0.005]
[1730993694853,0.001664,75376.0,75368.0,0.005]
[1730993695061,0.0489,75375.0,75361.0,0.19994268]
[1730993695296,0.0489,75375.0,75353.0,0.19994268]
[1730993695297,0.41571002,75375.0,75374.0,0.002]
[1730993695714,0.41571002,75375.0,75374.0,0.001]
[1730993695938,0.132686,75366.0,75362.0,0.19994268]
[1730993696142,0.1165,75369.0,75362.0,0.19994268]
[1730993696365,0.132689,75364.0,75362.0,0.19994268]
[1730993696601,0.132704,75356.0,75353.0,0.19994268]
[1730993696809,0.132706,75354.0,75353.0,0.19994268]
[1730993697028,0.0812,75357.0,75340.0,0.19994268]
[1730993697029,0.132721,75346.0,75340.0,0.19994268]
[1730993697259,0.1165,75353.0,75340.0,0.19994268]
[1730993697479,0.42066102,75352.0,75340.0,0.19994268]
[1730993697703,0.265431,75349.0,75340.0,0.19994268]
[1730993697912,0.42066102,75352.0,75340.0,0.02049427]
[1730993698132,0.265443,75346.0,75332.0,0.005]
[1730993698344,0.265424,75351.0,75338.0,0.19994268]
[1730993698558,0.132721,75346.0,75340.0,0.001]
[1730993699483,0.132729,75341.0,75340.0,0.001]
[1730993700193,0.0829,75341.0,75340.0,0.002]
[1730993700634,0.261029,75341.0,75340.0,0.002]
[1730993700846,0.41627002,75341.0,75340.0,0.002]
[1730993701060,0.91627002,75341.0,75340.0,0.001]
[1730993701300,0.28354102,75341.0,75340.0,0.001]
[1730993701505,0.41627002,75341.0,75340.0,0.001]
[1730993701713,0.41727002,75341.0,75340.0,0.012]
[1730993701936,0.023,75340.0,75329.0,0.19994268]
[1730993702158,0.132742,75334.0,75329.0,0.19994268]
[1730993702397,0.398206,75338.0,75329.0,0.19994268]
[1730993702613,0.132736,75337.0,75325.0,0.005]
[1730993702826,0.023,75336.0,75314.0,0.005]
[1730993703096,0.1165,75337.0,75329.0,0.19994268]
[1730993703311,0.19994268,75345.0,75333.0,0.005]
[1730993703542,0.013,75334.0,75333.0,0.015]
[1730993703756,0.013,75334.0,75333.0,0.14924102]
[1730993703967,0.013,75334.0,75333.0,0.37557345]
[1730993704178,0.013,75334.0,75333.0,0.4134308]
[1730993704420,0.013,75334.0,75333.0,0.28118978]
[1730993704660,0.001666,75341.0,75340.0,0.005]
[1730993705368,0.001666,75341.0,75335.0,0.015]
[1730993705846,0.001666,75341.0,75334.0,0.01]
[1730993706056,0.001666,75341.0,75333.0,0.005]
[1730993706285,0.001666,75341.0,75340.0,0.001]
[1730993706286,0.013666,75341.0,75340.0,0.001]
[1730993706528,0.001666,75341.0,75333.0,0.005]
[1730993707199,0.001,75334.0,75333.0,0.019]
[1730993707791,0.001666,75341.0,75335.0,0.001]
[1730993708004,0.026666,75341.0,75335.0,0.001]
[1730993708221,0.026666,75341.0,75333.0,0.001]
[1730993708458,0.013666,75341.0,75333.0,0.006]
[1730993708663,0.013706,75341.0,75334.0,0.005]
[1730993708881,0.001706,75341.0,75335.0,0.19994268]
[1730993709106,0.001706,75341.0,75340.0,0.005]
[1730993709107,0.013706,75341.0,75340.0,0.005]
[1730993709319,0.001706,75341.0,75340.0,0.13724102]
[1730993709541,0.001706,75341.0,75340.0,0.14724102]
[1730993709767,0.001706,75341.0,75340.0,0.19946901]
[1730993709768,0.013706,75341.0,75340.0,0.19946901]